fUST/lending_fUST_20250611
["ID","MTS","AMOUNT","RATE_DAILY","PERIOD"]
[365299468,1749586245759,-460.0,0.00022191,4]
[365299469,1749586245769,-726.64,0.00022191,4]
[365299470,1749586245779,-170.0,0.00022191,4]
[365299471,1749586245788,-1468.13,0.00022191,4]
[365299472,1749586245798,-598.13,0.00022191,4]
[365299473,1749586245807,-460.0,0.00022191,4]
[365299474,1749586245817,-226.56573406,0.000222,69]
[365299475,1749586245827,-226.56573404,0.000222,69]
[365299476,1749586245836,-3550.01159571,0.0002221,6]
[365299477,1749586245845,-1000.0,0.00022221,2]
[365299478,1749586245855,-1000.0,0.00022221,2]
[365299479,1749586245864,-3550.01159571,0.00022314,7]
[365299480,1749586245873,-160.0,0.00022345,3]
[365299481,1749586245882,-226.56573404,0.00022373,70]
[365299482,1749586245891,-151.0,0.000224,6]
[365299483,1749586245902,-906.96,0.000224,7]
[365299484,1749586245911,-3550.01159571,0.00022417,7]
[365299485,1749586245921,-1847.84,0.00022455,3]
[365299486,1749586245930,-923.92,0.00022455,3]
[365299487,1749586245939,-461.96,0.00022455,3]
[365299488,1749586245949,-160.0,0.00022464,2]
[365299489,1749586245958,-460.0,0.00022465,4]
[365299490,1749586245968,-460.0,0.00022465,4]
[365299491,1749586245977,-460.0,0.00022465,4]
[365299492,1749586245986,-249.72206538,0.00022465,4]
[365299493,1749586245995,-460.0,0.00022465,4]
[365299494,1749586246005,-460.0,0.00022465,4]
[365299495,1749586246014,-460.0,0.00022465,4]
[365299496,1749586246026,-460.0,0.00022465,4]
[365299497,1749586246035,-236.46763862,0.00022465,4]
[365299498,1749586246044,-460.0,0.00022465,4]
[365299499,1749586246053,-460.0,0.00022465,4]
[365299500,1749586246062,-505.29982678,0.00022465,2]
[365299501,1749586246071,-460.0,0.00022465,4]
[365299502,1749586246080,-460.0,0.00022465,4]
[365299503,1749586246090,-460.0,0.00022465,4]
[365299504,1749586246099,-745.95,0.00022465,4]
[365299505,1749586246108,-460.0,0.00022465,4]
[365299506,1749586246117,-460.0,0.00022465,4]
[365299507,1749586246128,-460.0,0.00022465,4]
[365299508,1749586246137,-460.0,0.00022465,4]
[365299509,1749586246146,-460.0,0.00022465,4]
[365299510,1749586246155,-460.0,0.00022465,4]
[365299511,1749586246165,-460.0,0.00022465,4]
[365299512,1749586246174,-460.0,0.00022465,4]
[365299513,1749586246184,-460.0,0.00022465,4]
[365299514,1749586246193,-606.89,0.00022465,4]
[365299515,1749586246202,-460.0,0.00022465,4]
[365299516,1749586246211,-460.0,0.00022465,4]
[365299517,1749586246221,-460.0,0.00022465,4]
[365299518,1749586246230,-460.0,0.00022465,4]
[365299519,1749586246239,-340.0,0.00022465,4]
[365299520,1749586246248,-460.0,0.00022465,4]
[365299521,1749586246257,-460.0,0.00022465,4]
[365299522,1749586246266,-460.0,0.00022465,4]
[365299523,1749586246275,-653.4,0.00022465,4]
[365299524,1749586246285,-460.0,0.00022465,4]
[365299525,1749586246294,-460.0,0.00022465,4]
[365299527,1749586246372,-495.26,0.00022465,4]
[365299528,1749586246381,-570.56,0.00022465,4]
[365299529,1749586246390,-460.0,0.00022465,4]
[365299530,1749586246400,-460.0,0.00022465,4]
[365299532,1749586246410,-460.0,0.00022465,4]
[365299533,1749586246419,-260.21169488,0.00022465,4]
[365299534,1749586246428,-2237.41,0.00022465,4]
[365299535,1749586246438,-460.0,0.00022465,4]
[365299536,1749586246447,-460.0,0.00022465,4]
[365299537,1749586246457,-578.73,0.00022465,4]
[365299538,1749586246466,-460.0,0.00022465,4]
[365299539,1749586246475,-460.0,0.00022465,4]
[365299540,1749586246485,-460.0,0.00022465,4]
[365299541,1749586246494,-460.0,0.00022465,4]
[365299542,1749586246504,-460.0,0.00022465,4]
[365299543,1749586246513,-460.0,0.00022465,4]
[365299544,1749586246523,-260.0,0.00022465,4]
[365299545,1749586246532,-549.19,0.00022465,4]
[365299546,1749586246542,-460.0,0.00022465,4]
[365299547,1749586246551,-460.0,0.00022465,4]
[365299548,1749586246561,-555.45,0.00022465,4]
[365299549,1749586246570,-460.0,0.00022465,4]
[365299550,1749586246583,-460.0,0.00022465,4]
[365299551,1749586246592,-460.0,0.00022465,2]
[365299552,1749586246601,-2456.03,0.00022465,4]
[365299553,1749586246611,-340.0,0.00022465,4]
[365299554,1749586246621,-460.0,0.00022465,4]
[365299555,1749586246631,-592.42,0.00022465,4]
[365299556,1749586246640,-2737.32,0.00022465,4]
[365299557,1749586246651,-460.0,0.00022465,4]
[365299558,1749586246660,-1837.72,0.00022465,4]
[365299559,1749586246670,-460.0,0.00022465,4]
[365299560,1749586246679,-1958.56,0.00022465,4]
[365299561,1749586246689,-460.0,0.00022465,4]
[365299562,1749586246698,-2244.78,0.00022465,4]
[365299563,1749586246708,-460.0,0.00022465,4]
[365299564,1749586246717,-460.0,0.00022465,4]
[365299565,1749586246726,-460.0,0.00022465,4]
[365299566,1749586246735,-460.0,0.00022465,4]
[365299567,1749586246747,-320.0,0.00022465,4]
[365299568,1749586246756,-460.0,0.00022465,4]
[365299569,1749586246765,-2426.17,0.00022465,4]
[365299570,1749586246775,-260.0,0.00022465,4]
[365299571,1749586246785,-460.0,0.00022465,4]
[365299572,1749586246794,-1568.49,0.00022465,4]
[365299573,1749586246803,-460.0,0.00022465,4]
[365299574,1749586246813,-460.0,0.00022465,4]
[365299575,1749586246822,-726.64,0.00022465,4]
[365299576,1749586246831,-1468.13,0.00022465,4]
[365299577,1749586246840,-598.13,0.00022465,4]
[365299578,1749586246850,-460.0,0.00022465,4]
[365299579,1749586246859,-1500.0,0.00022468,2]
[365299580,1749586246869,-500.0,0.00022473,2]
[365299581,1749586246879,-484.15155869,0.00022473,2]
[365299582,1749586246889,-500.0,0.00022473,2]
[365299583,1749586246900,-504.42654874,0.00022473,2]
[365299584,1749586246909,-500.0,0.00022473,2]
[365299585,1749586246918,-500.0,0.00022473,2]
[365299586,1749586246927,-500.0,0.00022473,2]
[365299587,1749586246936,-500.0,0.00022473,2]
[365299588,1749586246946,-600.0,0.00022473,2]
[365299589,1749586246955,-505.78867747,0.00022473,2]
[365299590,1749586246964,-500.0,0.00022473,2]
[365299591,1749586246981,-500.0,0.00022473,2]
[365299592,1749586246998,-500.0,0.00022473,2]
[365299593,1749586247013,-160.0,0.00022499,2]
[365299594,1749586247029,-40586.90031696,0.000225,2]
[365299595,1749586247045,-613.4854085,0.00022504,2]
[365299596,1749586247077,-3550.01159571,0.00022521,7]
[365299597,1749586247097,-1295.51,0.000226,7]
[365299598,1749586247117,-3550.01159571,0.00022624,7]
[365299599,1749586247139,-151.0,0.000227,10]
[365299600,1749586247156,-3550.01159571,0.00022728,7]
[365299601,1749586247169,-280.35957518,0.00022738,2]
[365299602,1749586247183,-460.0,0.00022739,4]
[365299603,1749586247200,-460.0,0.00022739,4]
[365299604,1749586247219,-460.0,0.00022739,4]
[365299605,1749586247239,-460.0,0.00022739,4]
[365299606,1749586247254,-460.0,0.00022739,4]
[365299607,1749586247267,-460.0,0.00022739,4]
[365299608,1749586247285,-460.0,0.00022739,4]
[365299609,1749586247299,-460.0,0.00022739,4]
[365299610,1749586247314,-460.0,0.00022739,4]
[365299611,1749586247330,-160.0,0.00022739,4]
[365299612,1749586247342,-460.0,0.00022739,4]
[365299613,1749586247357,-386.37957184,0.00022739,4]
[365299614,1749586247374,-745.95,0.00022739,4]
[365299615,1749586247390,-460.0,0.00022739,4]
[365299616,1749586247406,-460.0,0.00022739,4]
[365299617,1749586247422,-460.0,0.00022739,4]
[365299618,1749586247436,-460.0,0.00022739,4]
[365299619,1749586247451,-460.0,0.00022739,4]
[365299620,1749586247465,-210.0,0.00022739,4]
[365299621,1749586247478,-460.0,0.00022739,4]
[365299622,1749586247493,-460.0,0.00022739,4]
[365299623,1749586247505,-460.0,0.00022739,4]
[365299624,1749586247518,-606.89,0.00022739,4]
[365299625,1749586247532,-460.0,0.00022739,4]
[365299626,1749586247545,-460.0,0.00022739,4]
[365299627,1749586247558,-390.0,0.00022739,4]
[365299628,1749586247571,-460.0,0.00022739,4]
[365299629,1749586247587,-460.0,0.00022739,4]
[365299630,1749586247600,-460.0,0.00022739,4]
[365299631,1749586247614,-460.0,0.00022739,4]
[365299632,1749586247629,-653.4,0.00022739,4]
[365299633,1749586247638,-460.0,0.00022739,4]
[365299634,1749586247648,-460.0,0.00022739,4]
[365299635,1749586247660,-495.26,0.00022739,4]
[365299636,1749586247669,-460.0,0.00022739,4]
[365299637,1749586247678,-460.0,0.00022739,4]
[365299638,1749586247687,-460.0,0.00022739,4]
[365299639,1749586247697,-2237.41,0.00022739,4]
[365299640,1749586247706,-460.0,0.00022739,4]
[365299641,1749586247715,-460.0,0.00022739,4]
[365299642,1749586247725,-578.73,0.00022739,4]
[365299643,1749586247734,-460.0,0.00022739,4]
[365299644,1749586247744,-460.0,0.00022739,4]
[365299645,1749586247754,-460.0,0.00022739,4]
[365299646,1749586247764,-460.0,0.00022739,4]
[365299647,1749586247773,-460.0,0.00022739,4]
[365299648,1749586247783,-460.0,0.00022739,4]
[365299649,1749586247792,-549.19,0.00022739,4]
[365299650,1749586247801,-460.0,0.00022739,4]
[365299651,1749586247811,-460.0,0.00022739,4]
[365299652,1749586247820,-555.45,0.00022739,4]
[365299653,1749586247991,-460.0,0.00022739,4]
[365299654,1749586248007,-460.0,0.00022739,4]
[365299655,1749586248024,-460.0,0.00022739,2]
[365299656,1749586248033,-2456.03,0.00022739,4]
[365299657,1749586248043,-460.0,0.00022739,4]
[365299658,1749586248053,-592.42,0.00022739,4]
[365299659,1749586248062,-2737.32,0.00022739,4]
[365299660,1749586248071,-460.0,0.00022739,4]
[365299661,1749586248081,-1837.72,0.00022739,4]
[365299662,1749586248091,-460.0,0.00022739,4]
[365299663,1749586248101,-1958.56,0.00022739,4]
[365299664,1749586248110,-460.0,0.00022739,4]
[365299665,1749586248120,-2244.78,0.00022739,4]
[365299666,1749586248129,-460.0,0.00022739,4]
[365299667,1749586248139,-460.0,0.00022739,4]
[365299668,1749586248149,-460.0,0.00022739,4]
[365299669,1749586248159,-460.0,0.00022739,4]
[365299670,1749586248168,-460.0,0.00022739,4]
[365299671,1749586248177,-2426.17,0.00022739,4]
[365299672,1749586248187,-460.0,0.00022739,4]
[365299673,1749586248198,-1568.49,0.00022739,4]
[365299674,1749586248207,-460.0,0.00022739,4]
[365299675,1749586248217,-460.0,0.00022739,4]
[365299676,1749586248226,-726.64,0.00022739,4]
[365299677,1749586248237,-1468.13,0.00022739,4]
[365299678,1749586248246,-598.13,0.00022739,4]
[365299679,1749586248256,-460.0,0.00022739,4]
[365299680,1749586248266,-1500.0,0.00022768,2]
[365299681,1749586248275,-1500.0,0.00022768,2]
[365299682,1749586248285,-151.0,0.000228,9]
[365299683,1749586248294,-3550.01159571,0.00022831,8]
[365299684,1749586248304,-160.0,0.00022881,2]
[365299685,1749586248314,-213.1263252,0.00022881,2]
[365299686,1749586248323,-229.6792923,0.000229,2]
[365299687,1749586248333,-160.0,0.000229,2]
[365299688,1749586248343,-842.5625,0.000229,2]
[365299689,1749586248353,-160.0,0.00022904,2]
[365299690,1749586248363,-424.12530924,0.00022906,2]
[365299691,1749586248374,-834.9046531,0.00022906,2]
[365299692,1749586248384,-3550.01159571,0.00022934,8]
[365299693,1749586248394,-1020.0,0.00023,2]
[365299694,1749586248405,-1020.0,0.00023,2]
[365299695,1749586248415,-1020.0,0.00023,2]
[365299696,1749586248424,-1020.0,0.00023,2]
[365299697,1749586248434,-1020.0,0.00023,2]
[365299698,1749586248443,-1020.0,0.00023,2]
[365299699,1749586248453,-1020.0,0.00023,2]
[365299700,1749586248463,-1020.0,0.00023,2]
[365299701,1749586248472,-1020.0,0.00023,2]
[365299702,1749586248482,-1020.0,0.00023,2]
[365299703,1749586248492,-151.0,0.00023,6]
[365299704,1749586248501,-151.0,0.00023,6]
[365299705,1749586248511,-460.0,0.00023013,4]
[365299706,1749586248521,-460.0,0.00023013,4]
[365299707,1749586248531,-460.0,0.00023013,4]
[365299708,1749586248541,-460.0,0.00023013,4]
[365299709,1749586248550,-515.78953446,0.00023013,4]
[365299710,1749586248560,-460.0,0.00023013,4]
[365299711,1749586248570,-570.0,0.00023013,4]
[365299712,1749586248580,-460.0,0.00023013,4]
[365299713,1749586248591,-460.0,0.00023013,4]
[365299714,1749586248601,-460.0,0.00023013,4]
[365299715,1749586248611,-745.95,0.00023013,4]
[365299716,1749586248620,-460.0,0.00023013,4]
[365299717,1749586248630,-460.0,0.00023013,4]
[365299718,1749586248640,-460.0,0.00023013,4]
[365299719,1749586248650,-460.0,0.00023013,4]
[365299720,1749586248659,-460.0,0.00023013,4]
[365299721,1749586248669,-460.0,0.00023013,4]
[365299722,1749586248678,-460.0,0.00023013,4]
[365299723,1749586248687,-460.0,0.00023013,4]
[365299724,1749586248697,-606.89,0.00023013,4]
[365299725,1749586248706,-460.0,0.00023013,4]
[365299726,1749586248715,-460.0,0.00023013,4]
[365299727,1749586248724,-571.05,0.00023013,4]
[365299728,1749586248734,-460.0,0.00023013,4]
[365299729,1749586248743,-460.0,0.00023013,4]
[365299730,1749586248752,-460.0,0.00023013,4]
[365299731,1749586248761,-653.4,0.00023013,4]
[365299732,1749586248770,-460.0,0.00023013,4]
[365299733,1749586248780,-460.0,0.00023013,4]
[365299734,1749586248790,-460.0,0.00023013,4]
[365299735,1749586248799,-224.85338045,0.00023013,4]
[365299736,1749586248808,-460.0,0.00023013,4]
[365299737,1749586248817,-2237.41,0.00023013,4]
[365299738,1749586248826,-460.0,0.00023013,4]
[365299739,1749586248836,-460.0,0.00023013,4]
[365299740,1749586248845,-578.73,0.00023013,4]
[365299741,1749586248855,-460.0,0.00023013,4]
[365299742,1749586248864,-460.0,0.00023013,4]
[365299743,1749586248874,-460.0,0.00023013,4]
[365299744,1749586248884,-460.0,0.00023013,4]
[365299745,1749586248893,-460.0,0.00023013,4]
[365299746,1749586248903,-460.0,0.00023013,4]
[365299747,1749586248913,-549.19,0.00023013,4]
[365299748,1749586248922,-460.0,0.00023013,4]
[365299749,1749586248931,-460.0,0.00023013,4]
[365299750,1749586248941,-555.45,0.00023013,4]
[365299751,1749586248951,-223.44,0.00023013,4]
[365299752,1749586248960,-375.7589457,0.00023013,4]
[365299753,1749586248969,-460.0,0.00023013,2]
[365299754,1749586248979,-2456.03,0.00023013,4]
[365299755,1749586248988,-460.0,0.00023013,4]
[365299756,1749586248998,-592.42,0.00023013,4]
[365299757,1749586249007,-2737.32,0.00023013,4]
[365299758,1749586249017,-240.0,0.00023013,4]
[365299759,1749586249026,-1837.72,0.00023013,4]
[365299760,1749586249036,-460.0,0.00023013,4]
[365299761,1749586249046,-1958.56,0.00023013,4]
[365299762,1749586249055,-460.0,0.00023013,4]
[365299763,1749586249064,-2244.78,0.00023013,4]
[365299764,1749586249073,-460.0,0.00023013,4]
[365299765,1749586249083,-460.0,0.00023013,4]
[365299766,1749586249093,-460.0,0.00023013,4]
[365299767,1749586249102,-460.0,0.00023013,4]
[365299768,1749586249111,-460.0,0.00023013,4]
[365299769,1749586249121,-2426.17,0.00023013,4]
[365299770,1749586249130,-460.0,0.00023013,4]
[365299771,1749586249140,-1568.49,0.00023013,4]
[365299772,1749586249149,-460.0,0.00023013,4]
[365299773,1749586249158,-460.0,0.00023013,4]
[365299774,1749586249168,-726.64,0.00023013,4]
[365299775,1749586249178,-1468.13,0.00023013,4]
[365299776,1749586249187,-598.13,0.00023013,4]
[365299777,1749586249197,-460.0,0.00023013,4]
[365299778,1749586249207,-2000.0,0.00023016,2]
[365299779,1749586249216,-1000.0,0.00023021,2]
[365299780,1749586249226,-1000.0,0.00023021,2]
[365299781,1749586249235,-1000.0,0.00023021,2]
[365299782,1749586249245,-502.64960961,0.00023021,2]
[365299783,1749586249255,-1000.0,0.00023021,2]
[365299784,1749586249265,-1200.0,0.00023021,2]
[365299785,1749586249275,-501.69412432,0.00023021,2]
[365299786,1749586249284,-981.18565199,0.00023021,2]
[365299787,1749586249294,-3550.01159571,0.00023038,8]
[365299788,1749586249303,-152.993659,0.00023038,7]
[365299789,1749586249313,-151.0,0.00023038,7]
[365299790,1749586249323,-151.0,0.00023038,7]
[365299791,1749586249333,-266.869812,0.00023038,7]
[365299792,1749586249342,-109728.57,0.000231,7]
[365299793,1749586249351,-151.0,0.000231,7]
[365299794,1749586249361,-151.0,0.000231,7]
[365299795,1749586249370,-500.0,0.00023136,2]
[365299796,1749586249380,-500.0,0.00023136,2]
[365299797,1749586249389,-500.0,0.00023136,2]
[365299798,1749586249399,-500.0,0.00023136,2]
[365299799,1749586249408,-3550.01159571,0.00023141,8]
[365299800,1749586249418,-282.0,0.00023195,2]
[365299801,1749586249427,-3000.0,0.000232,2]
[365299802,1749586249436,-150.46124919,0.000232,2]
[365299803,1749586249445,-3000.0,0.0002321,2]
[365299804,1749586249455,-3000.0,0.0002322,2]
[365299805,1749586249465,-151.0,0.00023221,6]
[365299806,1749586249474,-3000.0,0.0002323,2]
[365299807,1749586249483,-3000.0,0.0002324,2]
[365299808,1749586249492,-500.0,0.00023241,2]
[365299809,1749586249503,-3550.01159571,0.00023245,8]
[365299810,1749586249512,-151.0,0.00023245,7]
[365299811,1749586249521,-3000.0,0.0002325,2]
[365299812,1749586249531,-277.940277,0.0002325,7]
[365299813,1749586249540,-151.0,0.0002325,7]
[365299814,1749586249550,-151.0,0.0002325,7]
[365299815,1749586249561,-151.0,0.0002325,7]
[365299816,1749586249570,-3000.0,0.0002326,2]
[365299817,1749586249580,-151.0,0.0002326,7]
[365299818,1749586249591,-151.0,0.0002326,7]
[365299819,1749586249600,-151.18516,0.0002326,7]
[365299820,1749586249609,-151.0,0.0002326,7]
[365299821,1749586249619,-3000.0,0.0002327,2]
[365299822,1749586249629,-3000.0,0.0002328,2]
[365299823,1749586249639,-460.0,0.00023287,4]
[365299824,1749586249649,-190.0,0.00023287,4]
[365299825,1749586249660,-460.0,0.00023287,4]
[365299826,1749586249670,-240.0,0.00023287,4]
[365299827,1749586249680,-460.0,0.00023287,4]
[365299828,1749586249689,-151.0,0.00023287,7]
[365299829,1749586249698,-151.0,0.00023287,7]
[365299830,1749586249708,-460.0,0.00023287,4]
[365299831,1749586249717,-460.0,0.00023287,4]
[365299832,1749586249727,-460.0,0.00023287,4]
[365299833,1749586249736,-745.95,0.00023287,4]
[365299834,1749586249745,-470.0,0.00023287,4]
[365299835,1749586249755,-600.0,0.00023287,4]
[365299836,1749586249765,-460.0,0.00023287,4]
[365299837,1749586249774,-460.0,0.00023287,4]
[365299838,1749586249784,-460.0,0.00023287,4]
[365299839,1749586249793,-460.0,0.00023287,4]
[365299840,1749586249802,-151.0,0.00023287,7]
[365299841,1749586249811,-460.0,0.00023287,4]
[365299842,1749586249821,-460.0,0.00023287,4]
[365299843,1749586249830,-606.89,0.00023287,4]
[365299844,1749586249840,-460.0,0.00023287,4]
[365299845,1749586249850,-460.0,0.00023287,4]
[365299846,1749586249859,-151.0,0.00023287,7]
[365299847,1749586249869,-151.0,0.00023287,7]
[365299848,1749586249878,-460.0,0.00023287,4]
[365299849,1749586249888,-307.19774906,0.00023287,4]
[365299850,1749586249897,-460.0,0.00023287,4]
[365299851,1749586249907,-653.4,0.00023287,4]
[365299852,1749586249917,-460.0,0.00023287,4]
[365299853,1749586249926,-151.0,0.00023287,7]
[365299854,1749586249935,-460.0,0.00023287,4]
[365299855,1749586249945,-460.0,0.00023287,4]
[365299856,1749586249954,-460.0,0.00023287,4]
[365299857,1749586249964,-2237.41,0.00023287,4]
[365299858,1749586249975,-460.0,0.00023287,4]
[365299859,1749586249984,-460.0,0.00023287,4]
[365299860,1749586249994,-578.73,0.00023287,4]
[365299861,1749586250003,-460.0,0.00023287,4]
[365299862,1749586250013,-460.0,0.00023287,4]
[365299863,1749586250022,-460.0,0.00023287,4]
[365299864,1749586250032,-237.20016576,0.00023287,4]
[365299865,1749586250042,-379.369,0.00023287,7]
[365299866,1749586250051,-460.0,0.00023287,4]
[365299867,1749586250061,-379.369,0.00023287,7]
[365299868,1749586250070,-460.0,0.00023287,4]
[365299869,1749586250080,-460.0,0.00023287,4]
[365299870,1749586250089,-549.19,0.00023287,4]
[365299871,1749586250099,-460.0,0.00023287,4]
[365299872,1749586250109,-555.45,0.00023287,4]
[365299873,1749586250118,-460.0,0.00023287,2]
[365299874,1749586250127,-2456.03,0.00023287,4]
[365299875,1749586250137,-592.42,0.00023287,4]
[365299876,1749586250146,-460.0,0.00023287,4]
[365299877,1749586250156,-2737.32,0.00023287,4]
[365299878,1749586250166,-1837.72,0.00023287,4]
[365299879,1749586250175,-460.0,0.00023287,4]
[365299880,1749586250185,-1958.56,0.00023287,4]
[365299881,1749586250194,-460.0,0.00023287,4]
[365299882,1749586250203,-2244.78,0.00023287,4]
[365299883,1749586250212,-460.0,0.00023287,4]
[365299884,1749586250222,-460.0,0.00023287,4]
[365299885,1749586250232,-460.0,0.00023287,4]
[365299886,1749586250241,-460.0,0.00023287,4]
[365299887,1749586250251,-460.0,0.00023287,4]
[365299888,1749586250260,-2426.17,0.00023287,4]
[365299889,1749586250270,-460.0,0.00023287,4]
[365299890,1749586250279,-1568.49,0.00023287,4]
[365299891,1749586250289,-460.0,0.00023287,4]
[365299892,1749586250299,-460.0,0.00023287,4]
[365299893,1749586250308,-726.64,0.00023287,4]
[365299894,1749586250318,-1468.13,0.00023287,4]
[365299895,1749586250327,-598.13,0.00023287,4]
[365299896,1749586250336,-313.16012884,0.00023287,4]
[365299897,1749586250346,-3000.0,0.0002329,2]
[365299898,1749586250355,-3000.0,0.000233,2]
[365299899,1749586250364,-151.0,0.000233,8]
[365299900,1749586250374,-3000.0,0.0002331,2]
[365299901,1749586250383,-2000.0,0.00023316,2]
[365299902,1749586250392,-1000.0,0.00023316,2]
[365299903,1749586250402,-3000.0,0.0002332,2]
[365299904,1749586250412,-3000.0,0.0002333,2]
[365299905,1749586250421,-3000.0,0.0002334,2]
[365299906,1749586250430,-3550.01159571,0.00023348,9]
[365299907,1749586250440,-3000.0,0.0002335,2]
[365299908,1749586250449,-3000.0,0.0002336,2]
[365299909,1749586250459,-159.41069739,0.0002337,2]
[365299910,1749586250469,-3000.0,0.0002337,2]
[365299911,1749586250570,-3000.0,0.0002338,2]
[365299912,1749586250584,-3000.0,0.0002339,2]
[365299913,1749586250594,-3000.0,0.000234,2]
[365299914,1749586250603,-3000.0,0.0002341,2]
[365299915,1749586250612,-3000.0,0.0002342,2]
[365299916,1749586250623,-151.0,0.00023429,6]
[365299917,1749586250632,-3000.0,0.0002343,2]
[365299918,1749586250642,-3000.0,0.0002344,2]
[365299919,1749586250653,-3000.0,0.0002345,2]
[365299920,1749586250663,-3550.01159571,0.00023452,9]
[365299921,1749586250674,-3000.0,0.0002346,2]
[365299922,1749586250683,-3000.0,0.0002347,2]
[365299923,1749586250693,-3000.0,0.0002348,2]
[365299924,1749586250703,-151.0,0.0002348,7]
[365299925,1749586250712,-160.087901,0.0002348,7]
[365299926,1749586250722,-160.087901,0.0002348,7]
[365299927,1749586250732,-3000.0,0.0002349,2]
[365299928,1749586250741,-3000.0,0.000235,2]
[365299929,1749586250750,-906.96,0.000235,7]
[365299930,1749586250759,-159.41069739,0.00023507,2]
[365299931,1749586250768,-3000.0,0.0002351,2]
[365299932,1749586250777,-3000.0,0.0002352,2]
[365299933,1749586250787,-152.874631,0.0002352,7]
[365299934,1749586250796,-5000.0,0.00023529,2]
[365299935,1749586250806,-151.0,0.00023529,2]
[365299936,1749586250815,-1688.0,0.00023529,2]
[365299937,1749586250824,-2500.0,0.00023529,2]
[365299938,1749586250833,-2500.0,0.00023529,2]
[365299939,1749586250842,-2500.0,0.00023529,2]
[365299940,1749586250852,-2500.0,0.00023529,2]
[365299941,1749586250862,-801.44693128,0.00023529,2]
[365299942,1749586250871,-207.4,0.00023529,2]
[365299943,1749586250880,-3000.0,0.0002353,2]
[365299944,1749586250890,-3000.0,0.0002354,2]
[365299945,1749586250899,-3000.0,0.0002355,2]
[365299946,1749586250908,-3550.01159571,0.00023555,9]
[365299947,1749586250918,-3000.0,0.0002356,2]
[365299948,1749586250927,-460.0,0.00023561,4]
[365299949,1749586250937,-460.0,0.00023561,4]
[365299950,1749586250947,-460.0,0.00023561,4]
[365299951,1749586250956,-220.0,0.00023561,4]
[365299952,1749586250965,-460.0,0.00023561,4]
[365299953,1749586250974,-170.0,0.00023561,4]
[365299954,1749586250983,-745.95,0.00023561,4]
[365299955,1749586250992,-460.0,0.00023561,4]
[365299956,1749586251002,-460.0,0.00023561,4]
[365299957,1749586251011,-460.0,0.00023561,4]
[365299958,1749586251021,-460.0,0.00023561,4]
[365299959,1749586251030,-460.0,0.00023561,4]
[365299960,1749586251039,-460.0,0.00023561,4]
[365299961,1749586251049,-606.89,0.00023561,4]
[365299962,1749586251058,-460.0,0.00023561,4]
[365299963,1749586251067,-460.0,0.00023561,4]
[365299964,1749586251077,-460.0,0.00023561,4]
[365299965,1749586251086,-460.0,0.00023561,4]
[365299966,1749586251095,-653.4,0.00023561,4]
[365299967,1749586251104,-460.0,0.00023561,4]
[365299968,1749586251113,-400.6,0.00023561,4]
[365299969,1749586251122,-460.0,0.00023561,4]